[Event "Titled Tuesday Blitz November 16 2021"]
[White "Nagy, Gabor"]
[Black "Bologan, Victor"]
[WhiteFideId "737119"]
[BlackFideId "13900048"]
[WhiteElo "2534"]
[BlackElo "2472"]
[Result "1/2-1/2"]
[Round "09"]
[TimeControl "180+1"]
[Date "2021.11.16"]
[WhiteClock "0:01:57"]
[BlackClock "0:00:03"]

1. Nf3 {[%clk 0:03:00]}  Nf6 {[%clk 0:02:55]} 2. c4 {[%clk 0:03:00]}  e6 {[%clk 0:02:54]} 3. Nc3 {[%clk 0:03:01]}  b6 {[%clk 0:02:50]} 4. e4 {[%clk 0:03:00]}  Bb7 {[%clk 0:02:50]} 5. Qe2 {[%clk 0:03:00]}  c5 {[%clk 0:02:15]} 6. e5 {[%clk 0:02:56]}  Ng4 {[%clk 0:02:05]} 7. d4 {[%clk 0:02:53]}  cxd4 {[%clk 0:01:43]} 8. Nxd4 {[%clk 0:02:51]}  Nh6 {[%clk 0:01:40]} 9. Bxh6 {[%clk 0:02:49]}  gxh6 {[%clk 0:01:39]} 10. f4 {[%clk 0:02:48]}  Bb4 {[%clk 0:01:24]} 11. O-O-O {[%clk 0:02:44]}  Bxc3 {[%clk 0:01:17]} 12. bxc3 {[%clk 0:02:45]}  Qe7 {[%clk 0:00:43]} 13. Nb5 {[%clk 0:02:43]}  O-O {[%clk 0:00:42]} 14. Qh5 {[%clk 0:02:42]}  f5 {[%clk 0:00:19]} 15. Nd6 {[%clk 0:02:37]}  Be4 {[%clk 0:00:15]} 16. Bd3 {[%clk 0:02:35]}  Bxd3 {[%clk 0:00:14]} 17. Rxd3 {[%clk 0:02:36]}  Nc6 {[%clk 0:00:13]} 18. Qxh6 {[%clk 0:02:32]}  Kh8 {[%clk 0:00:12]} 19. g3 {[%clk 0:02:28]}  Rg8 {[%clk 0:00:11]} 20. Rhd1 {[%clk 0:02:28]}  Rg6 {[%clk 0:00:09]} 21. Qh5 {[%clk 0:02:28]}  Na5 {[%clk 0:00:09]} 22. Qf3 {[%clk 0:02:26]}  Rb8 {[%clk 0:00:08]} 23. Nb5 {[%clk 0:02:20]}  Rg7 {[%clk 0:00:08]} 24. Rd4 {[%clk 0:02:16]}  Qc5 {[%clk 0:00:07]} 25. Rxd7 {[%clk 0:02:14]}  Nxc4 {[%clk 0:00:06]} 26. Rxg7 {[%clk 0:02:12]}  Kxg7 {[%clk 0:00:06]} 27. Rd7+ {[%clk 0:02:13]}  Kg8 {[%clk 0:00:06]} 28. Qh5 {[%clk 0:02:06]}  Qg1+ {[%clk 0:00:05]} 29. Kc2 {[%clk 0:02:05]}  Qf2+ {[%clk 0:00:05]} 30. Kb3 {[%clk 0:02:02]}  Na5+ {[%clk 0:00:04]} 31. Ka3 {[%clk 0:01:56]}  Qc5+ {[%clk 0:00:04]} 32. Ka4 {[%clk 0:01:57]}  Qc4+ {[%clk 0:00:04]} 33. Ka3 {[%clk 0:01:57]}  Qc5+ {[%clk 0:00:04]} 34. Ka4 {[%clk 0:01:57]}  Qc4+ {[%clk 0:00:03]} 35. Ka3 {[%clk 0:01:57]}  Qc5+ {[%clk 0:00:03]} 1/2-1/2


[Site "https://www.chess.com"]

[Event "Titled Tuesday Blitz November 16 2021"]
[White "Narayanan, Srinath"]
[Black "Tsydypov, Zhamsaran"]
[WhiteFideId "5018420"]
[BlackFideId "4108566"]
[WhiteElo "2472"]
[BlackElo "2614"]
[Result "0-1"]
[Round "09"]
[TimeControl "180+1"]
[Date "2021.11.16"]
[WhiteClock "0:00:02"]
[BlackClock "0:00:23"]

1. Nf3 {[%clk 0:03:00]}  g6 {[%clk 0:02:59]} 2. c4 {[%clk 0:02:59]}  Bg7 {[%clk 0:02:59]} 3. g3 {[%clk 0:03:00]}  e5 {[%clk 0:03:00]} 4. Bg2 {[%clk 0:03:00]}  Nc6 {[%clk 0:03:00]} 5. Nc3 {[%clk 0:03:00]}  f5 {[%clk 0:03:00]} 6. O-O {[%clk 0:02:59]}  Nf6 {[%clk 0:02:59]} 7. d3 {[%clk 0:02:59]}  h6 {[%clk 0:02:58]} 8. Rb1 {[%clk 0:02:59]}  O-O {[%clk 0:02:57]} 9. b4 {[%clk 0:02:57]}  d6 {[%clk 0:02:58]} 10. Nd5 {[%clk 0:02:56]}  Be6 {[%clk 0:02:55]} 11. Nd2 {[%clk 0:02:56]}  Rb8 {[%clk 0:02:49]} 12. Qa4 {[%clk 0:02:51]}  Nd4 {[%clk 0:02:48]} 13. Qd1 {[%clk 0:02:42]}  Bf7 {[%clk 0:02:42]} 14. b5 {[%clk 0:02:38]}  g5 {[%clk 0:02:28]} 15. e3 {[%clk 0:02:20]}  Ne6 {[%clk 0:02:26]} 16. f4 {[%clk 0:02:16]}  gxf4 {[%clk 0:02:24]} 17. exf4 {[%clk 0:02:10]}  exf4 {[%clk 0:02:23]} 18. Nxf4 {[%clk 0:02:05]}  Nxf4 {[%clk 0:02:23]} 19. Rxf4 {[%clk 0:02:06]}  Ng4 {[%clk 0:02:15]} 20. Bb2 {[%clk 0:01:57]}  Be5 {[%clk 0:02:14]} 21. Rxg4+ {[%clk 0:01:30]}  fxg4 {[%clk 0:02:12]} 22. Qxg4+ {[%clk 0:01:31]}  Kh8 {[%clk 0:02:12]} 23. Qf4 {[%clk 0:01:22]}  Qg5 {[%clk 0:01:48]} 24. Qxg5 {[%clk 0:01:22]}  hxg5 {[%clk 0:01:47]} 25. Bxe5+ {[%clk 0:01:23]}  dxe5 {[%clk 0:01:47]} 26. Nf3 {[%clk 0:01:24]}  e4 {[%clk 0:01:47]} 27. dxe4 {[%clk 0:01:20]}  Bxc4 {[%clk 0:01:47]} 28. Nxg5 {[%clk 0:01:20]}  Bxa2 {[%clk 0:01:33]} 29. Rc1 {[%clk 0:01:20]}  Rbd8 {[%clk 0:01:33]} 30. h4 {[%clk 0:01:07]}  Rd7 {[%clk 0:01:29]} 31. e5 {[%clk 0:01:07]}  Re8 {[%clk 0:01:17]} 32. e6 {[%clk 0:00:59]}  Rg7 {[%clk 0:01:10]} 33. Bxb7 {[%clk 0:00:29]}  Bxe6 {[%clk 0:01:09]} 34. Ra1 {[%clk 0:00:29]}  Bd7 {[%clk 0:01:06]} 35. Ra5 {[%clk 0:00:18]}  Re2 {[%clk 0:00:50]} 36. Bf3 {[%clk 0:00:17]}  Rb2 {[%clk 0:00:46]} 37. Rxa7 {[%clk 0:00:18]}  Re7 {[%clk 0:00:46]} 38. Be4 {[%clk 0:00:14]}  Bxb5 {[%clk 0:00:42]} 39. Rb7 {[%clk 0:00:12]}  Rd7 {[%clk 0:00:26]} 40. Bf3 {[%clk 0:00:11]}  Rdd2 {[%clk 0:00:23]} 41. Rb8+ {[%clk 0:00:02]}  Kg7 {[%clk 0:00:23]} 0-1


[Site "https://www.chess.com"]

[Event "Titled Tuesday Blitz November 16 2021"]
[White "Saydaliev, Saidakbar"]
[Black "Sjugirov, Sanan"]
[WhiteFideId "14203693"]
[BlackFideId "4189302"]
[WhiteElo "2335"]
[BlackElo "2653"]
[Result "0-1"]
[Round "09"]
[TimeControl "180+1"]
[Date "2021.11.16"]
[WhiteClock "0:00:03"]
[BlackClock "0:00:08"]

1. e4 {[%clk 0:02:57]}  c6 {[%clk 0:02:59]} 2. Nc3 {[%clk 0:02:55]}  d5 {[%clk 0:03:00]} 3. Nf3 {[%clk 0:02:56]}  Bg4 {[%clk 0:03:00]} 4. h3 {[%clk 0:02:55]}  Bxf3 {[%clk 0:03:00]} 5. Qxf3 {[%clk 0:02:55]}  e6 {[%clk 0:03:01]} 6. Be2 {[%clk 0:02:54]}  Nd7 {[%clk 0:02:54]} 7. Qg3 {[%clk 0:02:52]}  g6 {[%clk 0:02:44]} 8. d4 {[%clk 0:02:51]}  Bg7 {[%clk 0:02:35]} 9. Be3 {[%clk 0:02:51]}  Ne7 {[%clk 0:02:32]} 10. O-O-O {[%clk 0:02:51]}  b5 {[%clk 0:02:27]} 11. Bd3 {[%clk 0:02:44]}  b4 {[%clk 0:02:26]} 12. Ne2 {[%clk 0:02:43]}  dxe4 {[%clk 0:02:19]} 13. Bxe4 {[%clk 0:02:44]}  Nd5 {[%clk 0:02:20]} 14. Kb1 {[%clk 0:02:35]}  N7f6 {[%clk 0:02:02]} 15. Bf3 {[%clk 0:02:23]}  Rb8 {[%clk 0:01:59]} 16. Bc1 {[%clk 0:02:16]}  O-O {[%clk 0:01:57]} 17. Ka1 {[%clk 0:02:10]}  Qa5 {[%clk 0:01:55]} 18. h4 {[%clk 0:02:07]}  Rb6 {[%clk 0:01:49]} 19. Rd3 {[%clk 0:02:03]}  Ra6 {[%clk 0:01:45]} 20. a3 {[%clk 0:02:02]}  bxa3 {[%clk 0:01:42]} 21. Rxa3 {[%clk 0:02:03]}  Qb6 {[%clk 0:01:39]} 22. Qd6 {[%clk 0:01:32]}  Nb4 {[%clk 0:01:20]} 23. Qxb4 {[%clk 0:01:25]}  Qxb4 {[%clk 0:01:19]} 24. Rxa6 {[%clk 0:01:25]}  Nd5 {[%clk 0:01:15]} 25. c3 {[%clk 0:01:18]}  Qb7 {[%clk 0:01:11]} 26. Ra2 {[%clk 0:01:09]}  a5 {[%clk 0:01:04]} 27. Nf4 {[%clk 0:01:06]}  Qb6 {[%clk 0:00:51]} 28. Nd3 {[%clk 0:01:04]}  Rb8 {[%clk 0:00:49]} 29. Bd2 {[%clk 0:01:00]}  Qb5 {[%clk 0:00:42]} 30. Be2 {[%clk 0:00:57]}  a4 {[%clk 0:00:33]} 31. Re1 {[%clk 0:00:54]}  Qb6 {[%clk 0:00:23]} 32. Nc5 {[%clk 0:00:54]}  a3 {[%clk 0:00:23]} 33. Nd7 {[%clk 0:00:52]}  axb2+ {[%clk 0:00:20]} 34. Kb1 {[%clk 0:00:52]}  Qb3 {[%clk 0:00:18]} 35. Nxb8 {[%clk 0:00:50]}  Qxb8 {[%clk 0:00:19]} 36. Rxb2 {[%clk 0:00:50]}  Qh2 {[%clk 0:00:19]} 37. Bf3 {[%clk 0:00:44]}  h5 {[%clk 0:00:19]} 38. Kc2 {[%clk 0:00:23]}  Qxh4 {[%clk 0:00:18]} 39. Re2 {[%clk 0:00:22]}  Bf6 {[%clk 0:00:16]} 40. Ra2 {[%clk 0:00:19]}  Kg7 {[%clk 0:00:15]} 41. Ra6 {[%clk 0:00:18]}  c5 {[%clk 0:00:15]} 42. Bxd5 {[%clk 0:00:14]}  exd5 {[%clk 0:00:14]} 43. Be3 {[%clk 0:00:13]}  Qg4 {[%clk 0:00:13]} 44. Rd2 {[%clk 0:00:10]}  Qf5+ {[%clk 0:00:13]} 45. Kc1 {[%clk 0:00:08]}  c4 {[%clk 0:00:13]} 46. Ra5 {[%clk 0:00:07]}  h4 {[%clk 0:00:12]} 47. Rb5 {[%clk 0:00:06]}  Qe4 {[%clk 0:00:09]} 48. Re2 {[%clk 0:00:05]}  Qxg2 {[%clk 0:00:09]} 49. Kd2 {[%clk 0:00:05]}  h3 {[%clk 0:00:08]} 50. f4 {[%clk 0:00:04]}  Qf3 {[%clk 0:00:07]} 51. Rf2 {[%clk 0:00:04]}  Qg3 {[%clk 0:00:07]} 52. Rxd5 {[%clk 0:00:03]}  h2 {[%clk 0:00:07]} 53. Rxh2 {[%clk 0:00:03]}  Qxh2+ {[%clk 0:00:08]} 54. Kc1 {[%clk 0:00:03]}  Qh1+ {[%clk 0:00:08]} 0-1


[Site "https://www.chess.com"]

[Event "Titled Tuesday Blitz November 16 2021"]
[White "Shipov, Sergei"]
[Black "Kislov, Oleg"]
[WhiteFideId "4113624"]
[BlackFideId "13503774"]
[WhiteElo "2775"]
[BlackElo "2252"]
[Result "1-0"]
[Round "09"]
[TimeControl "180+1"]
[Date "2021.11.16"]
[WhiteClock "0:00:29"]
[BlackClock "0:00:01"]

1. d4 {[%clk 0:03:00]}  Nf6 {[%clk 0:02:57]} 2. c4 {[%clk 0:03:00]}  e6 {[%clk 0:02:57]} 3. Nc3 {[%clk 0:03:00]}  Bb4 {[%clk 0:02:54]} 4. Qc2 {[%clk 0:03:00]}  d5 {[%clk 0:02:53]} 5. a3 {[%clk 0:02:59]}  Be7 {[%clk 0:02:47]} 6. cxd5 {[%clk 0:02:59]}  exd5 {[%clk 0:02:47]} 7. Bg5 {[%clk 0:02:59]}  c6 {[%clk 0:02:46]} 8. e3 {[%clk 0:02:59]}  O-O {[%clk 0:02:46]} 9. Bd3 {[%clk 0:02:59]}  h6 {[%clk 0:02:45]} 10. Bh4 {[%clk 0:02:58]}  Re8 {[%clk 0:02:45]} 11. Nf3 {[%clk 0:02:57]}  Ne4 {[%clk 0:02:42]} 12. Bxe7 {[%clk 0:02:55]}  Qxe7 {[%clk 0:02:42]} 13. Bxe4 {[%clk 0:02:49]}  dxe4 {[%clk 0:02:43]} 14. Nd2 {[%clk 0:02:49]}  f5 {[%clk 0:02:42]} 15. O-O {[%clk 0:02:49]}  Be6 {[%clk 0:02:42]} 16. b4 {[%clk 0:02:39]}  a6 {[%clk 0:02:41]} 17. Nb3 {[%clk 0:02:39]}  Nd7 {[%clk 0:02:40]} 18. Na5 {[%clk 0:02:31]}  Nf6 {[%clk 0:02:36]} 19. Ne2 {[%clk 0:02:26]}  Bd5 {[%clk 0:02:30]} 20. Qc5 {[%clk 0:02:17]}  Qc7 {[%clk 0:02:25]} 21. Nf4 {[%clk 0:01:56]}  g5 {[%clk 0:01:53]} 22. Nxd5 {[%clk 0:01:55]}  Nxd5 {[%clk 0:01:53]} 23. Rac1 {[%clk 0:01:52]}  Rad8 {[%clk 0:01:51]} 24. Rfe1 {[%clk 0:00:49]}  Re6 {[%clk 0:01:49]} 25. Qc2 {[%clk 0:00:46]}  Qg7 {[%clk 0:01:25]} 26. Nc4 {[%clk 0:00:45]}  f4 {[%clk 0:00:59]} 27. Ne5 {[%clk 0:00:44]}  Nf6 {[%clk 0:00:27]} 28. Qb3 {[%clk 0:00:42]}  Rd5 {[%clk 0:00:27]} 29. a4 {[%clk 0:00:41]}  Nd7 {[%clk 0:00:23]} 30. Nxc6 {[%clk 0:00:31]}  bxc6 {[%clk 0:00:20]} 31. Rxc6 {[%clk 0:00:31]}  Rxc6 {[%clk 0:00:04]} 32. Qxd5+ {[%clk 0:00:31]}  Qf7 {[%clk 0:00:04]} 33. Qxc6 {[%clk 0:00:31]}  Nf6 {[%clk 0:00:04]} 34. h3 {[%clk 0:00:28]}  h5 {[%clk 0:00:03]} 35. Qc8+ {[%clk 0:00:28]}  Kg7 {[%clk 0:00:04]} 36. Qf5 {[%clk 0:00:28]}  g4 {[%clk 0:00:03]} 37. Qxf4 {[%clk 0:00:28]}  gxh3 {[%clk 0:00:03]} 38. gxh3 {[%clk 0:00:28]}  Nd5 {[%clk 0:00:01]} 39. Qxf7+ {[%clk 0:00:28]}  Kxf7 {[%clk 0:00:01]} 40. b5 {[%clk 0:00:28]}  axb5 {[%clk 0:00:01]} 41. axb5 {[%clk 0:00:29]} 1-0


[Site "https://www.chess.com"]

[Event "Titled Tuesday Blitz November 16 2021"]
[White "Svidler, Peter"]
[Black "Tsvetkov, Andrey"]
[WhiteFideId "4102142"]
[BlackFideId "34139360"]
[WhiteElo "2709"]
[BlackElo "2280"]
[Result "1-0"]
[Round "09"]
[TimeControl "180+1"]
[Date "2021.11.16"]
[WhiteClock "0:00:39"]
[BlackClock "0:00:01"]

1. e4 {[%clk 0:03:00]}  c5 {[%clk 0:02:54]} 2. Nf3 {[%clk 0:03:00]}  d6 {[%clk 0:02:54]} 3. d4 {[%clk 0:03:00]}  cxd4 {[%clk 0:02:55]} 4. Nxd4 {[%clk 0:03:00]}  Nf6 {[%clk 0:02:56]} 5. Nc3 {[%clk 0:03:00]}  a6 {[%clk 0:02:56]} 6. a3 {[%clk 0:02:59]}  Nc6 {[%clk 0:02:52]} 7. Bc4 {[%clk 0:02:54]}  e6 {[%clk 0:02:48]} 8. Be3 {[%clk 0:02:53]}  Be7 {[%clk 0:02:48]} 9. Qe2 {[%clk 0:02:46]}  Qc7 {[%clk 0:02:43]} 10. O-O-O {[%clk 0:02:44]}  O-O {[%clk 0:02:42]} 11. Rhg1 {[%clk 0:02:38]}  b5 {[%clk 0:02:39]} 12. Nxc6 {[%clk 0:02:25]}  Qxc6 {[%clk 0:02:34]} 13. Bb3 {[%clk 0:02:25]}  Rb8 {[%clk 0:02:18]} 14. f3 {[%clk 0:02:19]}  a5 {[%clk 0:02:16]} 15. a4 {[%clk 0:01:52]}  b4 {[%clk 0:02:07]} 16. Nb5 {[%clk 0:01:51]}  Ba6 {[%clk 0:02:05]} 17. Nd4 {[%clk 0:01:50]}  Qc8 {[%clk 0:01:50]} 18. Qf2 {[%clk 0:01:46]}  Nd7 {[%clk 0:01:50]} 19. g4 {[%clk 0:01:44]}  Nc5 {[%clk 0:01:50]} 20. Kb1 {[%clk 0:01:44]}  Qd7 {[%clk 0:01:42]} 21. Nf5 {[%clk 0:01:41]}  Nxb3 {[%clk 0:01:33]} 22. Nxe7+ {[%clk 0:01:41]}  Qxe7 {[%clk 0:01:33]} 23. cxb3 {[%clk 0:01:41]}  Rbc8 {[%clk 0:01:28]} 24. Bb6 {[%clk 0:01:38]}  d5 {[%clk 0:01:13]} 25. exd5 {[%clk 0:01:35]}  exd5 {[%clk 0:01:13]} 26. Bxa5 {[%clk 0:01:35]}  Rb8 {[%clk 0:00:21]} 27. Rxd5 {[%clk 0:01:25]}  Qe6 {[%clk 0:00:20]} 28. Rgd1 {[%clk 0:01:17]}  Rfc8 {[%clk 0:00:20]} 29. Ka2 {[%clk 0:01:15]}  h6 {[%clk 0:00:20]} 30. Qe1 {[%clk 0:01:04]}  Qc6 {[%clk 0:00:13]} 31. Rd6 {[%clk 0:01:01]}  Qa8 {[%clk 0:00:10]} 32. Qe4 {[%clk 0:00:52]}  Bb7 {[%clk 0:00:08]} 33. Qf5 {[%clk 0:00:48]}  Bxf3 {[%clk 0:00:07]} 34. Rf1 {[%clk 0:00:47]}  Be4 {[%clk 0:00:02]} 35. Qxf7+ {[%clk 0:00:46]}  Kh8 {[%clk 0:00:02]} 36. Bb6 {[%clk 0:00:40]}  Rg8 {[%clk 0:00:01]} 37. Rxh6+ {[%clk 0:00:39]}  gxh6 {[%clk 0:00:01]} 1-0


[Site "https://www.chess.com"]

[Event "Titled Tuesday Blitz November 16 2021"]
[White "Tillyaev, Ulugbek"]
[Black "Samadov, Read"]
[WhiteFideId "14202441"]
[BlackFideId "13417444"]
[WhiteElo "2341"]
[BlackElo "2084"]
[Result "0-1"]
[Round "09"]
[TimeControl "180+1"]
[Date "2021.11.16"]
[WhiteClock "0:00:19"]
[BlackClock "0:00:16"]

1. e4 {[%clk 0:03:00]}  c5 {[%clk 0:02:59]} 2. d4 {[%clk 0:02:59]}  cxd4 {[%clk 0:02:59]} 3. c3 {[%clk 0:02:59]}  Nf6 {[%clk 0:02:56]} 4. e5 {[%clk 0:02:58]}  Nd5 {[%clk 0:02:57]} 5. Qxd4 {[%clk 0:02:58]}  e6 {[%clk 0:02:57]} 6. Nf3 {[%clk 0:02:58]}  Nc6 {[%clk 0:02:57]} 7. Qe4 {[%clk 0:02:58]}  f5 {[%clk 0:02:56]} 8. Qe2 {[%clk 0:02:55]}  d6 {[%clk 0:02:56]} 9. c4 {[%clk 0:02:46]}  Nc7 {[%clk 0:02:55]} 10. Nc3 {[%clk 0:02:39]}  dxe5 {[%clk 0:02:52]} 11. Nxe5 {[%clk 0:02:39]}  Nd4 {[%clk 0:02:24]} 12. Qd1 {[%clk 0:02:19]}  Na6 {[%clk 0:01:01]} 13. Be3 {[%clk 0:02:14]}  Nb4 {[%clk 0:00:59]} 14. Qa4+ {[%clk 0:02:00]}  Bd7 {[%clk 0:00:58]} 15. Nxd7 {[%clk 0:01:56]}  Ndc2+ {[%clk 0:00:50]} 16. Kd2 {[%clk 0:01:52]}  Nxa1 {[%clk 0:00:45]} 17. Kc1 {[%clk 0:01:44]}  Qxd7 {[%clk 0:00:44]} 18. Nb5 {[%clk 0:01:45]}  O-O-O {[%clk 0:00:40]} 19. Be2 {[%clk 0:01:34]}  a6 {[%clk 0:00:34]} 20. Bf4 {[%clk 0:01:32]}  e5 {[%clk 0:00:25]} 21. Bxe5 {[%clk 0:01:27]}  Qd2+ {[%clk 0:00:24]} 22. Kb1 {[%clk 0:01:27]}  axb5 {[%clk 0:00:20]} 23. Qa8+ {[%clk 0:01:21]}  Kd7 {[%clk 0:00:20]} 24. Qxb7+ {[%clk 0:01:21]}  Ke6 {[%clk 0:00:21]} 25. Kxa1 {[%clk 0:00:34]}  Qxe2 {[%clk 0:00:21]} 26. Qb6+ {[%clk 0:00:33]}  Bd6 {[%clk 0:00:21]} 27. Bc3 {[%clk 0:00:29]}  Nc2+ {[%clk 0:00:18]} 28. Kb1 {[%clk 0:00:28]}  bxc4 {[%clk 0:00:17]} 29. Rc1 {[%clk 0:00:26]}  Na3+ {[%clk 0:00:17]} 30. Ka1 {[%clk 0:00:26]}  Rb8 {[%clk 0:00:15]} 31. Qc6 {[%clk 0:00:21]}  Rhc8 {[%clk 0:00:14]} 32. Qa4 {[%clk 0:00:19]}  Nb5 {[%clk 0:00:12]} 33. Re1 {[%clk 0:00:18]}  Nxc3 {[%clk 0:00:12]} 34. Rxe2+ {[%clk 0:00:18]}  Nxe2 {[%clk 0:00:13]} 35. Qd1 {[%clk 0:00:18]}  Nf4 {[%clk 0:00:12]} 36. g3 {[%clk 0:00:18]}  Nd3 {[%clk 0:00:11]} 37. Qe2+ {[%clk 0:00:18]}  Kf7 {[%clk 0:00:11]} 38. b3 {[%clk 0:00:18]}  Be5+ {[%clk 0:00:11]} 39. Kb1 {[%clk 0:00:18]}  c3 {[%clk 0:00:09]} 40. Qxd3 {[%clk 0:00:15]}  c2+ {[%clk 0:00:09]} 41. Qxc2 {[%clk 0:00:13]}  Rxc2 {[%clk 0:00:09]} 42. Kxc2 {[%clk 0:00:14]}  Rc8+ {[%clk 0:00:09]} 43. Kd3 {[%clk 0:00:14]}  Ke6 {[%clk 0:00:10]} 44. f4 {[%clk 0:00:13]}  Bd6 {[%clk 0:00:10]} 45. a4 {[%clk 0:00:14]}  Kd5 {[%clk 0:00:11]} 46. a5 {[%clk 0:00:14]}  Bb4 {[%clk 0:00:11]} 47. a6 {[%clk 0:00:15]}  Rc3+ {[%clk 0:00:12]} 48. Ke2 {[%clk 0:00:15]}  Rxb3 {[%clk 0:00:13]} 49. a7 {[%clk 0:00:16]}  Ra3 {[%clk 0:00:13]} 50. a8=Q+ {[%clk 0:00:17]}  Rxa8 {[%clk 0:00:14]} 51. Kd3 {[%clk 0:00:18]}  Ra3+ {[%clk 0:00:15]} 52. Kc2 {[%clk 0:00:19]}  Kc4 {[%clk 0:00:15]} 53. Kb2 {[%clk 0:00:19]}  Rd3 {[%clk 0:00:15]} 54. Kc2 {[%clk 0:00:19]}  Rd2+ {[%clk 0:00:16]} 0-1


[Site "https://www.chess.com"]

[Event "Titled Tuesday Blitz November 16 2021"]
[White "Weetik, Vjacheslav"]
[Black "Sarana, Alexey"]
[WhiteFideId "4153472"]
[BlackFideId "24133795"]
[WhiteElo "2469"]
[BlackElo "2689"]
[Result "0-1"]
[Round "09"]
[TimeControl "180+1"]
[Date "2021.11.16"]
[WhiteClock "0:00:04"]
[BlackClock "0:00:41"]

1. Nf3 {[%clk 0:02:59]}  d5 {[%clk 0:02:59]} 2. g3 {[%clk 0:02:59]}  g6 {[%clk 0:03:00]} 3. Bg2 {[%clk 0:02:57]}  Bg7 {[%clk 0:03:00]} 4. d4 {[%clk 0:02:57]}  c6 {[%clk 0:03:00]} 5. O-O {[%clk 0:02:57]}  Nf6 {[%clk 0:03:01]} 6. c4 {[%clk 0:02:58]}  dxc4 {[%clk 0:03:01]} 7. Na3 {[%clk 0:02:45]}  b5 {[%clk 0:03:01]} 8. Ne5 {[%clk 0:02:34]}  Nd5 {[%clk 0:03:01]} 9. e4 {[%clk 0:02:16]}  Nc7 {[%clk 0:03:00]} 10. Be3 {[%clk 0:01:57]}  O-O {[%clk 0:02:58]} 11. Rc1 {[%clk 0:01:48]}  a5 {[%clk 0:02:47]} 12. Nc2 {[%clk 0:01:34]}  Bb7 {[%clk 0:02:22]} 13. Qe2 {[%clk 0:01:33]}  Nd7 {[%clk 0:02:21]} 14. f4 {[%clk 0:01:32]}  e6 {[%clk 0:02:13]} 15. Rcd1 {[%clk 0:01:22]}  Qe7 {[%clk 0:02:13]} 16. h4 {[%clk 0:01:20]}  Rad8 {[%clk 0:02:05]} 17. h5 {[%clk 0:01:19]}  c5 {[%clk 0:02:03]} 18. Nxd7 {[%clk 0:00:45]}  Rxd7 {[%clk 0:02:01]} 19. dxc5 {[%clk 0:00:36]}  Bxb2 {[%clk 0:02:00]} 20. Nd4 {[%clk 0:00:31]}  Bxd4 {[%clk 0:01:54]} 21. Rxd4 {[%clk 0:00:31]}  Rfd8 {[%clk 0:01:50]} 22. Rxd7 {[%clk 0:00:31]}  Rxd7 {[%clk 0:01:50]} 23. a4 {[%clk 0:00:20]}  b4 {[%clk 0:01:39]} 24. c6 {[%clk 0:00:15]}  Bxc6 {[%clk 0:01:39]} 25. Qxc4 {[%clk 0:00:15]}  Bxa4 {[%clk 0:01:37]} 26. Ra1 {[%clk 0:00:10]}  Bb5 {[%clk 0:01:37]} 27. Qc5 {[%clk 0:00:09]}  a4 {[%clk 0:01:13]} 28. Qxe7 {[%clk 0:00:08]}  Rxe7 {[%clk 0:01:14]} 29. Bc5 {[%clk 0:00:09]}  Rd7 {[%clk 0:01:14]} 30. Bxb4 {[%clk 0:00:10]}  gxh5 {[%clk 0:01:15]} 31. Rc1 {[%clk 0:00:07]}  Kg7 {[%clk 0:01:13]} 32. Bc3+ {[%clk 0:00:06]}  f6 {[%clk 0:01:12]} 33. Ba5 {[%clk 0:00:06]}  Na6 {[%clk 0:01:11]} 34. Rb1 {[%clk 0:00:06]}  Bd3 {[%clk 0:01:08]} 35. Ra1 {[%clk 0:00:05]}  Bc2 {[%clk 0:01:08]} 36. e5 {[%clk 0:00:04]}  f5 {[%clk 0:01:05]} 37. Bc6 {[%clk 0:00:04]}  Rd4 {[%clk 0:01:05]} 38. Kf2 {[%clk 0:00:03]}  Nc5 {[%clk 0:01:04]} 39. Bb6 {[%clk 0:00:03]}  Ne4+ {[%clk 0:01:04]} 40. Ke3 {[%clk 0:00:02]}  Rd3+ {[%clk 0:01:02]} 41. Ke2 {[%clk 0:00:01]}  Nxg3+ {[%clk 0:01:02]} 42. Ke1 {[%clk 0:00:01]}  Ne4 {[%clk 0:01:00]} 43. Bxa4 {[%clk 0:00:01]}  Bxa4 {[%clk 0:00:56]} 44. Rxa4 {[%clk 0:00:01]}  h4 {[%clk 0:00:56]} 45. Ke2 {[%clk 0:00:02]}  Rd7 {[%clk 0:00:53]} 46. Ra6 {[%clk 0:00:02]}  h3 {[%clk 0:00:52]} 47. Bg1 {[%clk 0:00:02]}  Kf7 {[%clk 0:00:52]} 48. Ra3 {[%clk 0:00:03]}  h2 {[%clk 0:00:52]} 49. Bxh2 {[%clk 0:00:03]}  Rd2+ {[%clk 0:00:53]} 50. Ke3 {[%clk 0:00:03]}  Rxh2 {[%clk 0:00:53]} 51. Ra7+ {[%clk 0:00:04]}  Ke8 {[%clk 0:00:42]} 52. Ra6 {[%clk 0:00:04]}  Rh6 {[%clk 0:00:40]} 53. Kd4 {[%clk 0:00:04]}  Kf7 {[%clk 0:00:41]} 54. Rc6 {[%clk 0:00:04]}  Rg6 {[%clk 0:00:41]} 0-1


[Site "https://www.chess.com"]

[Event "Titled Tuesday Blitz November 16 2021"]
[White "Xiong, Jeffery"]
[Black "Djordjevic, Vuk"]
[WhiteFideId "2047640"]
[BlackFideId "902098"]
[WhiteElo "2699"]
[BlackElo "2463"]
[Result "1-0"]
[Round "09"]
[TimeControl "180+1"]
[Date "2021.11.16"]
[WhiteClock "0:00:42"]
[BlackClock "0:00:02"]

1. e4 {[%clk 0:03:00]}  e6 {[%clk 0:03:00]} 2. d4 {[%clk 0:03:00]}  d5 {[%clk 0:03:00]} 3. e5 {[%clk 0:03:01]}  c5 {[%clk 0:03:00]} 4. c3 {[%clk 0:03:01]}  Nc6 {[%clk 0:03:00]} 5. Nf3 {[%clk 0:03:01]}  Qb6 {[%clk 0:02:59]} 6. Be2 {[%clk 0:03:01]}  cxd4 {[%clk 0:02:57]} 7. cxd4 {[%clk 0:03:02]}  Bb4+ {[%clk 0:02:57]} 8. Kf1 {[%clk 0:03:01]}  Bd7 {[%clk 0:02:52]} 9. h4 {[%clk 0:03:00]}  Nh6 {[%clk 0:02:49]} 10. a3 {[%clk 0:02:54]}  Be7 {[%clk 0:02:48]} 11. Nc3 {[%clk 0:02:52]}  a6 {[%clk 0:02:35]} 12. b4 {[%clk 0:02:40]}  Qa7 {[%clk 0:02:30]} 13. Bxh6 {[%clk 0:02:23]}  gxh6 {[%clk 0:02:29]} 14. Qd2 {[%clk 0:02:24]}  Rc8 {[%clk 0:02:18]} 15. Rh3 {[%clk 0:02:24]}  f6 {[%clk 0:02:03]} 16. Rd1 {[%clk 0:02:08]}  Rf8 {[%clk 0:01:37]} 17. Bd3 {[%clk 0:01:48]}  fxe5 {[%clk 0:01:16]} 18. dxe5 {[%clk 0:01:49]}  Kd8 {[%clk 0:01:17]} 19. Bxh7 {[%clk 0:01:43]}  Be8 {[%clk 0:01:17]} 20. Rg3 {[%clk 0:01:32]}  Bh5 {[%clk 0:01:06]} 21. Qxh6 {[%clk 0:01:12]}  Bxf3 {[%clk 0:01:05]} 22. gxf3 {[%clk 0:01:06]}  Kd7 {[%clk 0:00:51]} 23. f4 {[%clk 0:00:51]}  Nd8 {[%clk 0:00:16]} 24. Nxd5 {[%clk 0:00:43]}  exd5 {[%clk 0:00:06]} 25. Rg7 {[%clk 0:00:43]}  d4 {[%clk 0:00:03]} 26. Qd6+ {[%clk 0:00:42]}  Ke8 {[%clk 0:00:02]} 27. Rxe7# {[%clk 0:00:42]} 1-0


[Site "https://www.chess.com"]